fUSD/lending_fUSD_20240712
["ID","MTS","AMOUNT","RATE_DAILY","PERIOD"]
[331860198,1720794742124,-819.84,0.00014794,2]
[331860199,1720794742135,-221.61340327,0.00014794,2]
[331860200,1720794742144,-1064.23,0.00014794,2]
[331860201,1720794742154,-500.0,0.00014794,2]
[331860202,1720794742164,-4271.54,0.00014794,2]
[331860203,1720794742175,-1838.14,0.00014794,2]
[331860204,1720794742185,-989.52,0.00014794,2]
[331860205,1720794742194,-500.0,0.00014794,2]
[331860206,1720794742203,-1038.55,0.00014794,2]
[331860207,1720794742213,-835.73,0.00014794,2]
[331860208,1720794742222,-720.1,0.00014794,2]
[331860209,1720794742231,-903.17,0.00014794,2]
[331860210,1720794742240,-948.98,0.00014794,2]
[331860211,1720794742251,-852.64,0.00014794,2]
[331860212,1720794742261,-540.42,0.00014794,2]
[331860213,1720794742271,-2299.04,0.00014794,2]
[331860214,1720794742280,-1111.09,0.00014794,2]
[331860215,1720794742289,-847.27,0.00014794,2]
[331860216,1720794742298,-563.5,0.00014794,2]
[331860217,1720794742308,-1080.3,0.00014794,2]
[331860218,1720794742318,-792.46,0.00014794,2]
[331860219,1720794742327,-1087.76,0.00014794,2]
[331860220,1720794742337,-777.64,0.00014794,2]
[331860221,1720794742346,-500.0,0.00014794,2]
[331860222,1720794742356,-859.86,0.00014794,2]
[331860223,1720794742365,-595.98,0.00014794,2]
[331860224,1720794742375,-966.7,0.00014794,2]
[331860225,1720794742384,-770.6,0.00014794,2]
[331860226,1720794742393,-500.0,0.00014794,2]
[331860227,1720794742402,-1183.71,0.00014794,2]
[331860228,1720794742411,-1004.68,0.00014794,2]
[331860229,1720794742423,-1241.85,0.00014794,2]
[331860230,1720794742434,-955.42,0.00014794,2]
[331860231,1720794742444,-1077.37,0.00014794,2]
[331860232,1720794742455,-1386.2,0.00014794,2]
[331860233,1720794742467,-581.34,0.00014794,2]
[331860234,1720794742476,-533.16,0.00014794,2]
[331860235,1720794742485,-500.0,0.00014794,2]
[331860236,1720794742494,-1428.78,0.00014794,2]
[331860237,1720794742504,-1248.36,0.00014794,2]
[331860238,1720794742513,-1524.13,0.00014794,2]
[331860239,1720794742522,-742.08,0.00014794,2]
[331860240,1720794742531,-1206.67,0.00014794,2]
[331860241,1720794742540,-765.74,0.00014794,2]
[331860242,1720794742549,-654.42,0.00014794,2]
[331860243,1720794742559,-1158.32,0.00014794,2]
[331860244,1720794742568,-517.72,0.00014794,2]
[331860245,1720794742578,-985.8,0.00014794,2]
[331860246,1720794742586,-1158.97,0.00014794,2]
[331860247,1720794742595,-1303.35,0.00014794,2]
[331860248,1720794742604,-642.75,0.00014794,2]
[331860249,1720794742614,-500.0,0.00014794,2]
[331860250,1720794742623,-675.59,0.00014794,2]
[331860251,1720794742632,-511.48385606,0.00014794,2]
[331860252,1720794742642,-1174.91,0.00014794,2]
[331860253,1720794742652,-953.14,0.00014794,2]
[331860254,1720794742661,-502.48,0.00014794,2]
[331860255,1720794742670,-712.64,0.00014794,2]
[331860256,1720794742680,-839.78,0.00014794,2]
[331860257,1720794742690,-1198.74,0.00014794,2]
[331860258,1720794742699,-504.32,0.00014794,2]
[331860259,1720794742708,-500.0,0.00014794,2]
[331860260,1720794742717,-506.44070119,0.00014794,2]
[331860261,1720794742727,-1168.03,0.00014794,2]
[331860262,1720794742736,-504.09511593,0.00014794,2]
[331860263,1720794742747,-1010.06,0.00014794,2]
[331860264,1720794742757,-642.47,0.00014794,2]
[331860265,1720794742767,-551.78,0.00014794,2]
[331860266,1720794742776,-748.91,0.00014794,2]
[331860267,1720794742785,-523.44,0.00014794,2]
[331860268,1720794742794,-822.71,0.00014794,2]
[331860269,1720794742804,-295.44364083,0.00014794,2]
[331860270,1720794742814,-697.55,0.00014794,2]
[331860271,1720794742824,-170.24492555,0.00014794,2]
[331860272,1720794742833,-712.55,0.00014794,2]
[331860273,1720794742842,-1375.16,0.00014794,2]
[331860274,1720794742851,-518.2631824,0.00014794,2]
[331860275,1720794742860,-894.92,0.00014794,2]
[331860276,1720794742869,-1385.78,0.00014794,2]
[331860277,1720794742879,-1435.7,0.00014794,2]
[331860278,1720794742889,-160.18470078,0.00014794,2]
[331860279,1720794742898,-768.75,0.00014794,2]
[331860280,1720794742908,-716.79,0.00014794,2]
[331860281,1720794742918,-630.92,0.00014794,2]
[331860282,1720794742927,-1100.08,0.00014794,2]
[331860283,1720794742937,-675.75,0.00014794,2]
[331860284,1720794742946,-566.06,0.00014794,2]
[331860285,1720794742956,-1310.79,0.00014794,2]
[331860286,1720794742966,-749.37,0.00014794,2]
[331860287,1720794742975,-1202.91,0.00014794,2]
[331860288,1720794742984,-511.15,0.00014794,2]
[331860289,1720794742994,-2219.16,0.00014794,2]
[331860290,1720794743005,-589.09,0.00014794,2]
[331860291,1720794743015,-1072.56,0.00014794,2]
[331860292,1720794743024,-6883.09,0.00014794,2]
[331860293,1720794743034,-1321.77,0.00014794,2]
[331860294,1720794743044,-1509.04,0.00014794,2]
[331860295,1720794743054,-515.22081631,0.00014794,2]
[331860296,1720794743064,-529.87,0.00014848,2]
[331860297,1720794743073,-531.42,0.00014848,2]
[331860298,1720794743083,-588.13,0.00014848,2]
[331860299,1720794743093,-624.05,0.00014848,2]
[331860300,1720794743105,-634.55,0.00014848,2]
[331860301,1720794743115,-677.95,0.00014848,2]
[331860302,1720794743124,-500.0,0.00014848,2]
[331860303,1720794743134,-586.38,0.00014848,2]
[331860304,1720794743143,-819.14,0.00014848,2]
[331860305,1720794743153,-806.25,0.00014848,2]
[331860306,1720794743162,-691.25,0.00014848,2]
[331860307,1720794743172,-710.01,0.00014848,2]
[331860308,1720794743184,-870.72,0.00014848,2]
[331860309,1720794743194,-500.0,0.00014848,2]
[331860310,1720794743204,-500.0,0.00014848,2]
[331860311,1720794743214,-570.65,0.00014848,2]
[331860312,1720794743225,-582.03,0.00014848,2]
[331860313,1720794743235,-506.37,0.00014848,2]
[331860314,1720794743243,-500.0,0.00014848,2]
[331860315,1720794743256,-641.55942049,0.00014848,2]
[331860316,1720794743267,-646.31,0.00014848,2]
[331860317,1720794743276,-500.0,0.00014848,2]
[331860318,1720794743286,-500.0,0.00014848,2]
[331860319,1720794743297,-559.09,0.00014848,2]
[331860320,1720794743306,-577.19,0.00014848,2]
[331860321,1720794743316,-560.07,0.00014848,2]
[331860322,1720794743326,-1091.77,0.00014848,2]
[331860323,1720794743336,-500.0,0.00014848,2]
[331860324,1720794743346,-558.7,0.00014848,2]
[331860325,1720794743355,-566.18,0.00014848,2]
[331860326,1720794743365,-500.0,0.00014848,2]
[331860327,1720794743375,-557.9,0.00014848,2]
[331860328,1720794743385,-524.11,0.00014849,2]
[331860329,1720794743395,-798.11,0.00014849,2]
[331860330,1720794743404,-543.87,0.00014849,2]
[331860331,1720794743414,-261.62871637,0.00014849,2]
[331860332,1720794743424,-714.43,0.00014849,2]
[331860333,1720794743434,-717.24,0.00014849,2]
[331860334,1720794743444,-808.16,0.00014849,2]
[331860335,1720794743453,-574.63,0.00014849,2]
[331860336,1720794743463,-625.21,0.00014849,2]
[331860337,1720794743472,-945.63,0.00014849,2]
[331860338,1720794743481,-677.22,0.00014849,2]
[331860339,1720794743491,-246.16807043,0.00014849,2]
[331860340,1720794743502,-567.5,0.00014849,2]
[331860341,1720794743512,-799.61,0.00014849,2]
[331860342,1720794743522,-743.72,0.00014849,2]
[331860343,1720794743532,-500.0,0.00014849,2]
[331860344,1720794743541,-608.66,0.00014849,2]
[331860345,1720794743551,-785.46,0.00014849,2]
[331860346,1720794743561,-506.96,0.00014849,2]
[331860347,1720794743570,-523.01,0.00014849,2]
[331860348,1720794743580,-532.23,0.00014849,2]
[331860349,1720794743590,-659.11,0.00014849,2]
[331860350,1720794743600,-928.6,0.00014849,2]
[331860351,1720794743610,-857.04,0.00014849,2]
[331860352,1720794743620,-536.84,0.00014849,2]
[331860353,1720794743630,-1012.71,0.00014849,2]
[331860354,1720794743640,-787.1,0.00014849,2]
[331860355,1720794743650,-880.19,0.00014849,2]
[331860356,1720794743659,-545.56,0.00014849,2]
[331860357,1720794743669,-714.66,0.00014849,2]
[331860358,1720794743678,-633.29,0.00014849,2]
[331860359,1720794743688,-728.52,0.00014849,2]
[331860360,1720794743697,-669.08,0.00014849,2]
[331860361,1720794743707,-718.04,0.00014849,2]
[331860362,1720794743717,-500.0,0.00014849,2]
[331860363,1720794743726,-500.0,0.00014849,2]
[331860364,1720794743735,-662.74,0.00014849,2]
[331860365,1720794743745,-605.31,0.00014849,2]
[331860366,1720794743755,-612.82,0.00014849,2]
[331860367,1720794743765,-564.04,0.00014849,2]
[331860368,1720794743775,-840.15,0.00014849,2]
[331860369,1720794743784,-883.19,0.00014849,2]
[331860370,1720794743794,-976.09,0.00014849,2]
[331860371,1720794743804,-379.91,0.00014849,2]
[331860372,1720794743813,-518.94,0.00014849,2]
[331860373,1720794743823,-804.2,0.00014849,2]
[331860374,1720794743833,-861.95,0.00014849,2]
[331860375,1720794743843,-410.4425051,0.00014849,2]
[331860376,1720794743853,-642.51,0.00014849,2]
[331860377,1720794743862,-695.85,0.00014849,2]
[331860378,1720794743872,-595.38,0.00014849,2]
[331860379,1720794743882,-947.63,0.00014849,2]
[331860380,1720794743892,-500.0,0.00014849,2]
[331860381,1720794743902,-505.8,0.00014849,2]
[331860382,1720794743913,-594.81,0.00014849,2]
[331860383,1720794743923,-1155.19,0.00014849,2]
[331860384,1720794743933,-544.81,0.00014849,2]
[331860385,1720794743943,-666.06,0.00014849,2]
[331860386,1720794743953,-421.81100777,0.00014849,2]
[331860387,1720794743964,-500.0,0.00014849,2]
[331860388,1720794743974,-574.05,0.00014849,2]
[331860389,1720794743984,-713.58,0.00014849,2]
[331860390,1720794743994,-523.05,0.00014849,2]
[331860391,1720794744005,-563.94,0.00014849,2]
[331860392,1720794744014,-520.25,0.00014849,2]
[331860393,1720794744023,-712.83,0.00014849,2]
[331860394,1720794744033,-821.92,0.00014849,2]
[331860395,1720794744043,-1374.04,0.00014849,2]
[331860396,1720794744053,-687.92,0.00014849,2]
[331860397,1720794744064,-883.42,0.00014849,2]
[331860398,1720794744074,-517.54,0.00014849,2]
[331860399,1720794744084,-242.58,0.00014849,2]
[331860400,1720794744099,-667.83,0.00014849,2]
[331860401,1720794744109,-1125.56,0.00014849,2]
[331860402,1720794744118,-804.76,0.00014849,2]
[331860403,1720794744127,-861.99,0.00014849,2]
[331860404,1720794744138,-1018.26,0.00014849,2]
[331860405,1720794744148,-833.97,0.00014849,2]
[331860406,1720794744158,-1246.88,0.00014849,2]
[331860407,1720794744169,-453.93,0.00014849,2]
[331860408,1720794744180,-743.04,0.00014849,2]
[331860409,1720794744190,-627.82,0.00014849,2]
[331860410,1720794744200,-789.19,0.00014849,2]
[331860411,1720794744210,-564.93,0.00014849,2]
[331860412,1720794744220,-872.58,0.00014849,2]
[331860413,1720794744230,-287.02235068,0.00014849,2]
[331860414,1720794744240,-631.32,0.00014849,2]
[331860415,1720794744249,-1303.41,0.00014849,2]
[331860416,1720794744259,-987.74,0.00014849,2]
[331860417,1720794744270,-1057.82,0.00014849,2]
[331860418,1720794744290,-159.47496992,0.00014849,2]
[331860419,1720794744301,-741.61,0.00014849,2]
[331860420,1720794744311,-473.83492417,0.00014849,2]
[331860421,1720794744320,-759.54,0.00014849,2]
[331860422,1720794744330,-675.64,0.00014849,2]
[331860423,1720794744339,-546.31,0.00014849,2]
[331860424,1720794744349,-1372.87,0.00014849,2]
[331860425,1720794744359,-507.78,0.00014849,2]
[331860426,1720794744368,-851.8,0.00014849,2]
[331860427,1720794744378,-1083.36,0.00014849,2]
[331860428,1720794744387,-519.29,0.00014849,2]
[331860429,1720794744397,-733.47,0.00014849,2]
[331860430,1720794744407,-628.29,0.00014849,2]
[331860431,1720794744417,-1269.7,0.00014849,2]
[331860432,1720794744426,-1162.35,0.00014849,2]
[331860433,1720794744436,-500.0,0.00014849,2]
[331860434,1720794744446,-1140.36,0.00014849,2]
[331860435,1720794744456,-988.4,0.00014849,2]
[331860436,1720794744465,-1188.5,0.00014849,2]
[331860437,1720794744475,-582.01,0.00014849,2]
[331860438,1720794744485,-742.99,0.00014849,2]
[331860439,1720794744495,-500.0,0.00014849,2]
[331860440,1720794744675,-641.89,0.00014849,2]
[331860441,1720794744684,-782.48,0.00014849,2]
[331860442,1720794744695,-648.56,0.00014849,2]
[331860443,1720794744706,-621.66,0.00014849,2]
[331860444,1720794744715,-837.4,0.00014849,2]
[331860445,1720794744727,-1217.56,0.00014849,2]
[331860446,1720794744738,-819.84,0.00014849,2]
[331860447,1720794744748,-1064.23,0.00014849,2]
[331860448,1720794744761,-500.0,0.00014849,2]
[331860449,1720794744771,-4271.54,0.00014849,2]
[331860450,1720794744783,-1838.14,0.00014849,2]
[331860451,1720794744793,-989.52,0.00014849,2]
[331860452,1720794744803,-493.21,0.00014849,2]
[331860453,1720794744814,-1038.55,0.00014849,2]
[331860454,1720794744823,-835.73,0.00014849,2]
[331860455,1720794744833,-720.1,0.00014849,2]
[331860456,1720794744843,-903.17,0.00014849,2]
[331860457,1720794744853,-948.98,0.00014849,2]
[331860458,1720794744863,-852.64,0.00014849,2]
[331860459,1720794744873,-540.42,0.00014849,2]
[331860460,1720794744883,-2299.04,0.00014849,2]
[331860461,1720794744892,-1111.09,0.00014849,2]
[331860462,1720794744902,-847.27,0.00014849,2]
[331860463,1720794744912,-563.5,0.00014849,2]
[331860464,1720794744922,-1080.3,0.00014849,2]
[331860465,1720794744932,-792.46,0.00014849,2]
[331860466,1720794744942,-1087.76,0.00014849,2]
[331860467,1720794744952,-777.64,0.00014849,2]
[331860468,1720794744962,-500.0,0.00014849,2]
[331860469,1720794744971,-859.86,0.00014849,2]
[331860470,1720794744981,-595.98,0.00014849,2]
[331860471,1720794744991,-966.7,0.00014849,2]
[331860472,1720794745002,-770.6,0.00014849,2]
[331860473,1720794745012,-506.08320393,0.00014849,2]
[331860474,1720794745023,-1183.71,0.00014849,2]
[331860475,1720794745032,-1004.68,0.00014849,2]
[331860476,1720794745042,-1241.85,0.00014849,2]
[331860477,1720794745052,-955.42,0.00014849,2]
[331860478,1720794745062,-1077.37,0.00014849,2]
[331860479,1720794745073,-1386.2,0.00014849,2]
[331860480,1720794745082,-581.34,0.00014849,2]
[331860481,1720794745093,-533.16,0.00014849,2]
[331860482,1720794745108,-500.0,0.00014849,2]
[331860483,1720794745117,-1428.78,0.00014849,2]
[331860484,1720794745127,-1248.36,0.00014849,2]
[331860485,1720794745137,-1524.13,0.00014849,2]
[331860486,1720794745148,-742.08,0.00014849,2]
[331860487,1720794745158,-1206.67,0.00014849,2]
[331860488,1720794745167,-765.74,0.00014849,2]
[331860489,1720794745177,-654.42,0.00014849,2]
[331860490,1720794745188,-1158.32,0.00014849,2]
[331860491,1720794745198,-517.72,0.00014849,2]
[331860492,1720794745208,-985.8,0.00014849,2]
[331860493,1720794745217,-1158.97,0.00014849,2]
[331860494,1720794745227,-1303.35,0.00014849,2]
[331860495,1720794745237,-642.75,0.00014849,2]
[331860496,1720794745246,-675.59,0.00014849,2]
[331860497,1720794745257,-500.0,0.00014849,2]
[331860498,1720794745267,-1174.91,0.00014849,2]
[331860499,1720794745277,-953.14,0.00014849,2]
[331860500,1720794745287,-502.48,0.00014849,2]
[331860501,1720794745297,-712.64,0.00014849,2]
[331860502,1720794745307,-839.78,0.00014849,2]
[331860503,1720794745316,-1198.74,0.00014849,2]
[331860504,1720794745326,-504.32,0.00014849,2]
[331860505,1720794745335,-459.11300902,0.00014849,2]
[331860506,1720794745345,-1168.03,0.00014849,2]
[331860507,1720794745354,-1010.06,0.00014849,2]
[331860508,1720794745363,-642.47,0.00014849,2]
[331860509,1720794745373,-551.78,0.00014849,2]
[331860510,1720794745382,-748.91,0.00014849,2]
[331860511,1720794745392,-523.44,0.00014849,2]
[331860512,1720794745402,-822.71,0.00014849,2]
[331860513,1720794745412,-697.55,0.00014849,2]
[331860514,1720794745422,-712.55,0.00014849,2]
[331860515,1720794745432,-1375.16,0.00014849,2]
[331860516,1720794745443,-894.92,0.00014849,2]
[331860517,1720794745454,-1385.78,0.00014849,2]
[331860518,1720794745464,-1435.7,0.00014849,2]
[331860519,1720794745473,-768.75,0.00014849,2]
[331860520,1720794745483,-716.79,0.00014849,2]
[331860521,1720794745493,-630.92,0.00014849,2]
[331860522,1720794745504,-1100.08,0.00014849,2]
[331860523,1720794745514,-675.75,0.00014849,2]
[331860524,1720794745523,-566.06,0.00014849,2]
[331860525,1720794745532,-1310.79,0.00014849,2]
[331860526,1720794745542,-749.37,0.00014849,2]
[331860527,1720794745551,-1202.91,0.00014849,2]
[331860528,1720794745561,-511.15,0.00014849,2]
[331860529,1720794745571,-2219.16,0.00014849,2]
[331860530,1720794745581,-589.09,0.00014849,2]
[331860531,1720794745591,-1072.56,0.00014849,2]
[331860532,1720794745600,-6883.09,0.00014849,2]
[331860533,1720794745610,-1321.77,0.00014849,2]
[331860534,1720794745620,-1509.04,0.00014849,2]
[331860535,1720794745630,-152.0044,0.0001485,2]
[331860536,1720794745639,-333.75050594,0.0001485,2]
[331860537,1720794745648,-150.0,0.0001485,2]
[331860538,1720794745658,-150.0,0.0001485,2]
[331860539,1720794745668,-150.0,0.0001485,2]
[331860540,1720794745677,-150.0,0.0001485,2]
[331860541,1720794745687,-407.86956,0.0001485,2]
[331860542,1720794745697,-150.0,0.0001485,2]
[331860543,1720794745708,-150.0,0.0001485,2]
[331860544,1720794745718,-150.0,0.0001485,2]
[331860545,1720794745727,-150.0,0.0001485,2]
[331860546,1720794745737,-150.0,0.0001485,2]
[331860547,1720794745747,-150.0,0.0001485,2]
[331860548,1720794745758,-333.75050594,0.00014867,2]
[331860549,1720794745769,-150.0,0.00014869,2]
[331860550,1720794745779,-150.0,0.00014871,2]
[331860551,1720794745788,-333.75050594,0.00014883,2]
[331860552,1720794745798,-150.0,0.00014887,2]
[331860553,1720794745807,-150.0,0.00014892,2]
[331860554,1720794745817,-2000.0,0.000149,2]
[331860555,1720794745826,-1329.0,0.000149,2]
[331860556,1720794745836,-333.75050594,0.000149,2]
[331860557,1720794745846,-531.42,0.00014903,2]
[331860558,1720794745856,-588.13,0.00014903,2]
[331860559,1720794745866,-624.05,0.00014903,2]
[331860560,1720794745875,-634.55,0.00014903,2]
[331860561,1720794745886,-677.95,0.00014903,2]
[331860562,1720794745896,-500.0,0.00014903,2]
[331860563,1720794745906,-586.38,0.00014903,2]
[331860564,1720794745916,-819.14,0.00014903,2]
[331860565,1720794745926,-806.25,0.00014903,2]
[331860566,1720794745936,-691.25,0.00014903,2]
[331860567,1720794745945,-710.01,0.00014903,2]
[331860568,1720794745955,-870.72,0.00014903,2]
[331860569,1720794745966,-500.0,0.00014903,2]
[331860570,1720794745976,-500.0,0.00014903,2]
[331860571,1720794745986,-570.65,0.00014903,2]
[331860572,1720794745996,-582.03,0.00014903,2]
[331860573,1720794746007,-506.37,0.00014903,2]
[331860574,1720794746017,-500.0,0.00014903,2]
[331860575,1720794746027,-646.31,0.00014903,2]
[331860576,1720794746037,-364.10800594,0.00014903,2]
[331860577,1720794746046,-429.72737557,0.00014903,2]
[331860578,1720794746056,-559.09,0.00014903,2]
[331860579,1720794746066,-577.19,0.00014903,2]
[331860580,1720794746075,-560.07,0.00014903,2]
[331860581,1720794746085,-1091.77,0.00014903,2]
[331860582,1720794746100,-484.15413858,0.00014903,2]
[331860583,1720794746110,-558.7,0.00014903,2]
[331860584,1720794746119,-566.18,0.00014903,2]
[331860585,1720794746129,-558.42645437,0.00014903,2]
[331860586,1720794746141,-557.9,0.00014903,2]
[331860587,1720794746150,-524.11,0.00014904,2]
[331860588,1720794746160,-798.11,0.00014904,2]
[331860589,1720794746170,-543.87,0.00014904,2]
[331860590,1720794746180,-714.43,0.00014904,2]
[331860591,1720794746190,-717.24,0.00014904,2]
[331860592,1720794746199,-808.16,0.00014904,2]
[331860593,1720794746209,-574.63,0.00014904,2]
[331860594,1720794746219,-625.21,0.00014904,2]
[331860595,1720794746229,-945.63,0.00014904,2]
[331860596,1720794746239,-677.22,0.00014904,2]
[331860597,1720794746249,-567.5,0.00014904,2]
[331860598,1720794746261,-799.61,0.00014904,2]
[331860599,1720794746272,-743.72,0.00014904,2]
[331860600,1720794746282,-500.0,0.00014904,2]
[331860601,1720794746292,-608.66,0.00014904,2]
[331860602,1720794746301,-785.46,0.00014904,2]
[331860603,1720794746311,-506.96,0.00014904,2]
[331860604,1720794746321,-523.01,0.00014904,2]
[331860605,1720794746331,-532.23,0.00014904,2]
[331860606,1720794746341,-659.11,0.00014904,2]
[331860607,1720794746351,-928.6,0.00014904,2]
[331860608,1720794746361,-857.04,0.00014904,2]
[331860609,1720794746371,-536.84,0.00014904,2]
[331860610,1720794746380,-1012.71,0.00014904,2]
[331860611,1720794746389,-787.1,0.00014904,2]
[331860612,1720794746399,-880.19,0.00014904,2]
[331860613,1720794746409,-545.56,0.00014904,2]
[331860614,1720794746418,-714.66,0.00014904,2]
[331860615,1720794746428,-633.29,0.00014904,2]
[331860616,1720794746438,-728.52,0.00014904,2]
[331860617,1720794746448,-669.08,0.00014904,2]
[331860618,1720794746457,-718.04,0.00014904,2]
[331860619,1720794746467,-500.0,0.00014904,2]
[331860620,1720794746477,-494.80602929,0.00014904,2]
[331860621,1720794746487,-662.74,0.00014904,2]
[331860622,1720794746496,-605.31,0.00014904,2]
[331860623,1720794746507,-612.82,0.00014904,2]
[331860624,1720794746516,-564.04,0.00014904,2]
[331860625,1720794746525,-840.15,0.00014904,2]
[331860626,1720794746534,-883.19,0.00014904,2]
[331860627,1720794746543,-976.09,0.00014904,2]
[331860628,1720794746553,-518.94,0.00014904,2]
[331860629,1720794746562,-804.2,0.00014904,2]
[331860630,1720794746571,-861.95,0.00014904,2]
[331860631,1720794746581,-642.51,0.00014904,2]
[331860632,1720794746591,-695.85,0.00014904,2]
[331860633,1720794746600,-595.38,0.00014904,2]
[331860634,1720794746610,-947.63,0.00014904,2]
[331860635,1720794746620,-500.0,0.00014904,2]
[331860636,1720794746630,-505.8,0.00014904,2]
[331860637,1720794746639,-594.81,0.00014904,2]
[331860638,1720794746649,-1155.19,0.00014904,2]
[331860639,1720794746658,-544.81,0.00014904,2]
[331860640,1720794746668,-666.06,0.00014904,2]
[331860641,1720794746678,-374.94214695,0.00014904,2]
[331860642,1720794746687,-574.05,0.00014904,2]
[331860643,1720794746697,-713.58,0.00014904,2]
[331860644,1720794746707,-523.05,0.00014904,2]
[331860645,1720794746717,-563.94,0.00014904,2]
[331860646,1720794746727,-520.25,0.00014904,2]
[331860647,1720794746737,-712.83,0.00014904,2]
[331860648,1720794746747,-821.92,0.00014904,2]
[331860649,1720794746760,-1374.04,0.00014904,2]
[331860650,1720794746769,-687.92,0.00014904,2]
[331860651,1720794746778,-883.42,0.00014904,2]
[331860652,1720794746788,-517.54,0.00014904,2]
[331860653,1720794746798,-667.83,0.00014904,2]
[331860654,1720794746808,-1125.56,0.00014904,2]
[331860655,1720794746817,-804.76,0.00014904,2]
[331860656,1720794746827,-861.99,0.00014904,2]
[331860657,1720794746838,-1018.26,0.00014904,2]
[331860658,1720794746848,-833.97,0.00014904,2]
[331860659,1720794746858,-1246.88,0.00014904,2]
[331860660,1720794746868,-453.93,0.00014904,2]
[331860661,1720794746877,-743.04,0.00014904,2]
[331860662,1720794746887,-627.82,0.00014904,2]
[331860663,1720794746896,-789.19,0.00014904,2]
[331860664,1720794746906,-564.93,0.00014904,2]
[331860665,1720794746917,-872.58,0.00014904,2]
[331860666,1720794746926,-631.32,0.00014904,2]
[331860667,1720794746937,-1303.41,0.00014904,2]
[331860668,1720794746947,-987.74,0.00014904,2]
[331860669,1720794746957,-1057.82,0.00014904,2]
[331860670,1720794746966,-741.61,0.00014904,2]
[331860671,1720794746977,-759.54,0.00014904,2]
[331860672,1720794746987,-675.64,0.00014904,2]
[331860673,1720794746997,-546.31,0.00014904,2]
[331860674,1720794747009,-1372.87,0.00014904,2]
[331860675,1720794747019,-507.78,0.00014904,2]
[331860676,1720794747029,-851.8,0.00014904,2]
[331860677,1720794747039,-1083.36,0.00014904,2]
[331860678,1720794747049,-519.29,0.00014904,2]
[331860679,1720794747059,-733.47,0.00014904,2]
[331860680,1720794747069,-628.29,0.00014904,2]
[331860681,1720794747078,-1269.7,0.00014904,2]
[331860682,1720794747089,-1162.35,0.00014904,2]
[331860683,1720794747099,-500.0,0.00014904,2]
[331860684,1720794747175,-1140.36,0.00014904,2]
[331860685,1720794747185,-988.4,0.00014904,2]
[331860686,1720794747195,-1188.5,0.00014904,2]
[331860687,1720794747204,-582.01,0.00014904,2]
[331860688,1720794747214,-742.99,0.00014904,2]
[331860689,1720794747223,-387.30071096,0.00014904,2]
[331860690,1720794747233,-641.89,0.00014904,2]
[331860691,1720794747243,-782.48,0.00014904,2]
[331860692,1720794747256,-648.56,0.00014904,2]
[331860693,1720794747266,-621.66,0.00014904,2]
[331860694,1720794747276,-837.4,0.00014904,2]
[331860695,1720794747286,-1217.56,0.00014904,2]
[331860696,1720794747296,-819.84,0.00014904,2]
[331860697,1720794747305,-1064.23,0.00014904,2]